[Event "87th Tata Steel Challengers 2025"]
[Site "Wijk aan Zee"]
[Date "2025.01.26"]
[Round "8.6"]
[White "Deshmukh, Divya"]
[Black "Nogerbek, Kazybek"]
[Result "0-1"]
[Annotator "TA"]
[ECO "A22"]
[WhiteElo "2490"]
[BlackElo "2514"]
[PlyCount "132"]
[EventDate "2025.01.13"]
[EventType "tourn"]
[EventCountry "NED"]
[SourceTitle "playchess.com"]
[Source "ChessBase"]
[SourceQuality "1"]
[TimeControl "40/6000+30:20/3000+30:900+30"]

{[%evp 13,132,0,4,1,4,-17,0,0,0,-21,-26,-30,-53,-41,0,-35,0,-57,-60,-81,-44,-42,-42,-58,-51,-83,-101,-79,-118,-180,-6,-27,-17,-78,-54,-52,-58,-54,-62,-62,-11,-64,-66,-69,-68,-79,-79,-79,-79,-73,-77,-75,-77,-70,-60,-63,-57,-88,-88,-88,-88,-88,-88,-88,-88,-88,-88,-88,-88,-88,-88,-88,-88,-105,-88,-141,-88,-102,-88,-117,-116,-114,-102,-119,-60,-185,-179,-155,-143,-498,-453,-568,-562,-537,-458,-408,-406,-442,-439,-646,-583,-631,-461,-4133,-940,-940,-933,-925,-845,-605,-575,-510,-433,-508,-401,-582,-571,-557,-556,-542,-535]} 1. c4 {[%emt 0:00:04]} e5 {[%emt 0:00:56]} 2. Nc3 {[%emt 0:00:28]} Nf6 {[%emt 0:01:12]} 3. g3 {[%emt 0:01:07]} Bb4 {[%emt 0:05:24]} 4. Bg2 {[%emt 0:00:06]} O-O {[%emt 0:00:12]} 5. e4 {[%emt 0:00:08]} Bxc3 {[%emt 0:07:03]} 6. bxc3 {[%emt 0:00:06]} c6 {[%emt 0:01:55]} 7. Ne2 {[%emt 0:01:23]} d5 {[%emt 0:00:23]} 8. exd5 {[%emt 0:00:49] A22: English Opening: 1...e5 2 Nc3 Nf6.} cxd5 {[%emt 0:00:11]} 9. d4 {[%emt 0:00:02]} exd4 {[%emt 0:07:27]} (9... dxc4 $5 10. Ba3 Re8 $14) 10. O-O $146 {[%emt 0:18:23] The position is equal.} (10. Nxd4 Re8+ 11. Be3 dxc4 12. O-O Nd5 13. Qh5 Nxe3 14. fxe3 g6 15. Qd5 Qe7 16. Qxc4 Kg7 17. Bd5 f6 18. Rf4 Nd7 19. Ne6+ Kh8 20. Qd4 Ne5 21. Nc5 g5 {½-½ Petursson,M (2499)-Olafsson,H (2512) ISL-chT 1718 2017 (6.2)}) 10... dxc4 {[%emt 0:16:29]} 11. Ba3 {[%emt 0:11:09] [#] A strong pair of Bishops.} d3 $1 {[%emt 0:11:25]} 12. Bxf8 {[%emt 0:01:42]} Qxf8 {[%emt 0:01:50]} 13. Nd4 {[%emt 0:00:57]} Qa3 {[%emt 0:05:45] Prevents Qa4} 14. Qd2 {[%emt 0:04:28]} Nbd7 {[%emt 0:07:19]} (14... Nc6 $6 15. Nxc6 bxc6 16. Bxc6 $14) 15. Rab1 {[%emt 0:17:05]} (15. Qf4 $11) 15... Nb6 $1 $15 {[%emt 0:01:55]} 16. Rb4 {[%emt 0:01:00]} Bd7 {[%emt 0:00:42] Prevents Nb5.} 17. Bxb7 {[%emt 0:12:03]} Re8 {[%emt 0:01:17]} 18. Bf3 {[%emt 0:02:25]} h6 {[%emt 0:01:29]} 19. Nb5 {[%emt 0:08:38] [#]} Qxb4 {[%emt 0:13:13]} 20. cxb4 {[%emt 0:00:04]} Bxb5 {[%emt 0:00:08]} 21. Rc1 {[%emt 0:02:41] [#]} (21. Re1 $17 Rc8 22. Rc1) 21... Rc8 $2 {[%emt 0:11:46]} (21... Ne4 $1 $19 {[%cal Re4d2]} 22. Bxe4 Rxe4) 22. Qf4 {[%emt 0:14:38]} c3 {[%emt 0:03:00]} 23. Qe5 {[%emt 0:03:02] [#]} (23. Qd4 $11 Na4 24. Kg2) 23... Nbd5 $1 {[%emt 0:01:27]} 24. Qd4 $1 {[%emt 0:09:30]} d2 {[%emt 0:02:06] Black plays in the center Dancing on a razor blade.} 25. Qxd2 {[%emt 0:00:09]} cxd2 {[%emt 0:00:07]} 26. Rxc8+ {[%emt 0:00:01]} Be8 {[%emt 0:02:50]} (26... Kh7 $15 27. Rc2 Nxb4 28. Rxd2 a5) 27. Kf1 {[%emt 0:01:13]} ({White should try} 27. Rc4 $11) 27... Nxb4 {[%emt 0:01:20]} 28. Ke2 {[%emt 0:00:22]} Nxa2 {[%emt 0:00:54]} 29. Kxd2 {[%emt 0:00:17]} Nb4 {[%emt 0:00:27]} 30. Kc3 {[%emt 0:00:47]} a5 {[%emt 0:02:44]} 31. Rc5 {[%emt 0:00:43]} Na6 {[%emt 0:01:30]} 32. Rxa5 {[%emt 0:00:02]} Nc7 {[%emt 0:00:04]} 33. Kd4 {[%emt 0:00:19]} Ne6+ {[%emt 0:00:48]} 34. Ke3 {[%emt 0:00:14]} g5 {[%emt 0:00:26]} 35. h4 {[%emt 0:00:27]} gxh4 {[%emt 0:00:46]} 36. gxh4 {[%emt 0:00:01]} Kg7 {[%emt 0:00:14]} 37. Bb7 {[%emt 0:00:57]} Bd7 {[%emt 0:00:43]} 38. Bf3 {[%emt 0:00:14]} Nf8 {[%emt 0:00:09]} 39. Kf4 {[%emt 0:00:18]} Ng6+ {[%emt 0:00:59]} 40. Kg3 {[%emt 0:00:01]} Be6 {[%emt 0:00:20]} 41. Ra1 {[%emt 0:08:10]} Ne7 {[%emt 0:01:04]} 42. Rh1 {[%emt 0:16:27]} Ne8 {[%emt 0:01:52]} 43. Bg4 {[%emt 0:01:08]} Bd5 {[%emt 0:02:28]} 44. Bf3 {[%emt 0:01:10] [#]} (44. Ra1 $142) 44... Bc4 {[%emt 0:00:09]} (44... Nf5+ $142 $1 45. Kf4 Be6) 45. Bg4 {[%emt 0:01:22]} Nd6 {[%emt 0:01:43]} 46. Re1 {[%emt 0:01:10]} Kf6 {[%emt 0:00:50]} 47. Kh3 {[%emt 0:00:08]} Bd5 {[%emt 0:00:24]} 48. Ra1 {[%emt 0:00:10]} Ng6 {[%emt 0:00:48]} 49. h5 {[%emt 0:11:33]} (49. Ra6 $1 $15 Ke5 50. Kh2) 49... Nf4+ $19 {[%emt 0:07:45]} 50. Kh4 {[%emt 0:00:00]} Ke5 {[%emt 0:00:54]} 51. Ra6 $2 {[%emt 0:12:26][%mdl 8192] Loses the game.} (51. Ra3 $17) 51... Nd3 {[%emt 0:05:07]} 52. Ra5 {[%emt 0:03:58]} Nxf2 {[%emt 0:00:49]} 53. Bd7 {[%emt 0:00:01]} f6 {[%emt 0:03:58]} 54. Kg3 {[%emt 0:01:10]} Nfe4+ {[%emt 0:00:07]} 55. Kh4 {[%emt 0:00:11]} Nc4 {[%emt 0:00:41]} 56. Ra7 {[%emt 0:00:24]} (56. Rb5 $142) 56... Kf4 {[%emt 0:01:43]} 57. Bc8 {[%emt 0:00:57]} Ne5 {[%emt 0:00:47] and ...Nf2 would now be decisive} 58. Bb7 {[%emt 0:00:26]} (58. Kh3 $142) 58... Nf3+ {[%emt 0:01:13]} (58... Bxb7 $142 59. Rxb7 Nf3+ 60. Kh3 Kg5) 59. Kh3 {[%emt 0:00:00]} Nfg5+ {[%emt 0:05:09]} 60. Kh4 {[%emt 0:00:29] [#]} Nd6 $1 {[%emt 0:01:18][%cal Rd6f5]} 61. Ra4+ {[%emt 0:15:17]} Bc4 {[%emt 0:15:28][%cal Rd6f5]} 62. Bc8 {[%emt 0:00:16]} Nf3+ {[%emt 0:00:33]} 63. Kh3 {[%emt 0:00:01]} Kg5 {[%emt 0:00:14]} 64. Bg4 {[%emt 0:01:07]} (64. Bb7 $142 Be6+ (64... Nxb7 $2 65. Rxc4 Nd6 66. Rb4 $19) 65. Kg3 Nxb7 66. Kxf3) 64... Ne5 {[%emt 0:00:33] Black is clearly winning.} 65. Bd1 {[%emt 0:00:09]} Ne4 {[%emt 0:00:13]} 66. Kg2 {[%emt 0:00:52] Prevents Nf2.} Nc3 {[%emt 0:00:12][%csl LRa4,LRd1] Weighted Error Value: White=0.42/Black=0.32  Loses game:     	White=1     	---        Missed win:     	---       	Black=1      Mistake:       	White=9     	Black=2      Inaccurate:     	White=4     	Black=3      OK:         	White=13    	Black=25     Best:        	White=3     	Black=2      Strong:       	White=1     	Black=1      Brilliant:      	---       	Black=1} 0-1

[Event "87th Tata Steel Challengers 2025"]
[Site "Wijk aan Zee"]
[Date "2025.01.26"]
[Round "8.7"]
[White "Yakubboev, Nodirbek"]
[Black "Bulmaga, Irina"]
[Result "1-0"]
[Annotator "TA"]
[ECO "D02"]
[WhiteElo "2659"]
[BlackElo "2386"]
[PlyCount "73"]
[EventDate "2025.01.13"]
[EventType "tourn"]
[EventCountry "NED"]
[SourceTitle "playchess.com"]
[Source "ChessBase"]
[SourceQuality "1"]
[TimeControl "40/6000+30:20/3000+30:900+30"]

{[%evp 9,73,12,24,14,26,31,31,11,1,9,42,28,31,26,31,28,30,39,39,43,47,44,47,42,60,58,54,62,61,67,84,82,114,122,117,85,215,232,245,226,305,285,291,260,325,333,287,257,356,375,362,371,380,285,686,695,666,629,632,641,617,621,716,578,565,539]} 1. d4 {[%emt 0:00:07]} Nf6 {[%emt 0:00:10]} 2. Nf3 {[%emt 0:00:21]} g6 {[%emt 0:00:14]} 3. Nbd2 {[%emt 0:00:32]} d5 {[%emt 0:01:41]} 4. b4 {[%emt 0:00:14]} Bg7 {[%emt 0:01:35]} 5. Bb2 {[%emt 0:00:08]} O-O {[%emt 0:01:10]} 6. e3 {[%emt 0:00:35] D02: 1 d4 d5 2 Nf3 sidelines, including 2...Nf6 3 g3 and 2...Nf6 3 Bf4.} Bf5 {[%emt 0:02:28]} 7. c4 {[%emt 0:06:01]} c6 {[%emt 0:03:27]} 8. Rc1 $5 {[%emt 0:01:52][%mdl 4] White is slightly better. Leaves trodden paths.} a5 {[%emt 0:02:20]} 9. b5 {[%emt 0:00:34]} Ne4 {[%emt 0:04:31]} 10. cxd5 {[%emt 0:18:22]} Nxd2 {[%emt 0:05:43]} 11. Qxd2 {[%emt 0:02:57]} cxd5 {[%emt 0:00:09]} 12. Be2 {[%emt 0:02:50]} Nd7 {[%emt 0:03:56]} 13. O-O {[%emt 0:04:05]} Nf6 {[%emt 0:02:52]} 14. Ba3 {[%emt 0:02:16] Repels Qd6} Re8 {[%emt 0:03:00]} 15. Qb2 {[%emt 0:06:03]} Nd7 {[%emt 0:06:54]} 16. Qb3 $146 {[%emt 0:03:28]} (16. Nh4 Be6 17. f4 Bf6 18. Nf3 Bf5 19. Ne5 Bxe5 20. dxe5 Be4 21. Qd4 e6 22. Rc3 {1-0 Chatalbashev,B (2570)-Hunt,A (2454) Skopje Karposh op 2012 (6)}) 16... Nb6 {[%emt 0:02:04]} 17. h3 {[%emt 0:13:43]} h5 {[%emt 0:03:11]} 18. Bc5 {[%emt 0:06:01]} a4 {[%emt 0:06:16]} 19. Qb4 {[%emt 0:04:05]} Bf8 {[%emt 0:03:20]} 20. Ne5 {[%emt 0:03:12]} Nd7 {[%emt 0:07:04]} 21. b6 {[%emt 0:06:34] White is much more active.} Nxc5 {[%emt 0:09:00]} 22. dxc5 {[%emt 0:02:25] aiming for c6.} f6 {[%emt 0:05:00] [#] This costs Black the game.} (22... Bg7 $16) 23. Nf3 $1 $18 {[%emt 0:01:38]} e5 {[%emt 0:06:01] [#]} 24. Nh4 $1 {[%emt 0:01:16]} Qc8 {[%emt 0:07:49]} 25. Bb5 {[%emt 0:10:58][%cal Be2b5,Bb5a4,Ba4b3,Bb3c2,Bc2e4][%mdl 32]} Rd8 {[%emt 0:02:41]} 26. Bxa4 {[%emt 0:02:41]} Kg7 {[%emt 0:04:39]} 27. Nxf5+ {[%emt 0:01:20]} Qxf5 {[%emt 0:00:02]} 28. Qb5 {[%emt 0:00:58]} h4 {[%emt 0:05:07]} 29. c6 {[%emt 0:01:45]} bxc6 {[%emt 0:00:08]} 30. Rxc6 {[%emt 0:00:02]} d4 {[%emt 0:00:52]} 31. Bb3 {[%emt 0:01:49]} Qe4 $2 {[%emt 0:05:09]} (31... Bd6 32. a4 Qd7) 32. Qc4 {[%emt 0:00:58] Qg8+ would kill now. White is clearly winning.} Kh6 {[%emt 0:02:22]} 33. Bc2 {[%emt 0:03:18]} Qd5 {[%emt 0:00:36]} 34. Qxd5 {[%emt 0:00:27]} Rxd5 {[%emt 0:00:04]} 35. Be4 {[%emt 0:00:07]} Rdd8 {[%emt 0:03:39]} 36. b7 {[%emt 0:01:47]} Rab8 {[%emt 0:00:36]} 37. Rxf6 {[%emt 0:00:06] Weighted Error Value: White=0.15 (very precise) /Black=0.46  Mistake:       	---       	Black=2      Inaccurate:     	---       	Black=4      OK:         	White=15    	Black=7      Strong:       	White=1     	---} 1-0